bitfinex-derivatives/quotes_SOLF0:USTF0_20250820
["timestamp","ask_amount","ask_price","bid_price","bid_amount"]
[1755692426135,5.5375,180.59,180.58,4.5948097]
[1755692426836,5.5372,180.6,180.58,4.5948097]
[1755692427032,0.04194553,180.62,180.58,4.5948097]
[1755692427233,0.04194553,180.62,180.6,7.4848097]
[1755692427626,3.01194553,180.62,180.6,4.5948097]
[1755692427831,0.04194553,180.62,180.6,4.5948097]
[1755692428030,0.04194553,180.62,180.61,2.89]
[1755692428238,0.04194553,180.62,180.61,7.4848097]
[1755692428441,0.04194553,180.62,180.61,10.87625265]
[1755692428630,2.97,180.7,180.62,2.89]
[1755692428829,374.99,180.73,180.65,7.47526808]
[1755692429538,2.97,180.77,180.66,7.47526808]
[1755692429729,2.97,180.77,180.68,7.47526808]
[1755692430131,137.34,180.78,180.69,4.58526808]
[1755692430337,140.31,180.78,180.7,2.89]
[1755692430533,5.5328,180.75,180.72,0.03764636]
[1755692430733,2.97,180.75,180.72,0.03764636]
[1755692430936,2.97,180.78,180.72,0.03764636]
[1755692431141,5.5332,180.73,180.72,0.03764636]
[1755692431535,5.5329,180.74,180.72,0.03764636]
[1755692431735,2.97,180.74,180.72,0.03764636]
[1755692432341,2.97,180.79,180.72,0.03764636]
[1755692432836,137.38,180.81,180.72,0.03764636]
[1755692433046,2.97,180.78,180.72,0.03764636]
[1755692433640,8.5032,180.73,180.72,0.03764636]
[1755692434435,2.97,180.78,180.72,2.92764636]
[1755692435633,2.97,180.78,180.72,0.03764636]
[1755692435834,5.41945265,180.78,180.72,0.03764636]
[1755692436036,8.5032,180.73,180.72,0.03764636]
[1755692438150,8.5032,180.73,180.72,4.636e-05]
[1755692439049,8.5032,180.73,180.6,2.44945265]
[1755692439050,0.56,180.73,180.6,4.58526808]
[1755692439245,2.97,180.7,180.6,2.89]
[1755692441144,2.97,180.67,180.56,7.47526808]
[1755692441549,2.97,180.67,180.56,2.89]
[1755692441848,5.5377,180.59,180.57,2.89]
[1755692442246,2.97,180.64,180.57,2.89]
[1755692442552,2.97,180.58,180.51,7.47526808]
[1755692443445,2.97,180.58,180.51,2.89]
[1755692443651,5.5385,180.56,180.51,2.89]
[1755692444045,2.44945265,180.62,180.52,2.89]
[1755692444245,2.97,180.63,180.52,2.89]
[1755692444945,5.538,180.58,180.52,2.89]
[1755692445151,140.12945265,180.64,180.52,2.89]
[1755692445345,2.97,180.6,180.52,2.89]
[1755692446047,2.97,180.6,180.5,2.89]
[1755692446243,2.97,180.6,180.51,2.00464562]
[1755692446444,2.97,180.6,180.52,2.00464562]
[1755692446750,2.97,180.6,180.53,2.00464562]
[1755692446952,5.5386,180.56,180.54,2.00464562]
[1755692447148,8.5086,180.56,180.55,2.00464562]
[1755692448044,5.5386,180.56,180.55,2.00464562]
[1755692448246,8.5086,180.56,180.55,2.00464562]
[1755692448448,5.5386,180.56,180.55,2.00464562]
[1755692448754,8.5086,180.56,180.55,2.00464562]
[1755692448951,2.97,180.6,180.53,5.5393]
[1755692449149,2.97,180.6,180.54,2.00329811]
[1755692449347,140.12945265,180.64,180.49,4.58526808]
[1755692449348,0.03968942,180.57,180.55,2.00329811]
[1755692449553,2.97,180.56,180.5,2.89]
[1755692449751,0.03968942,180.57,180.51,2.0031018]
[1755692449943,2.97,180.55,180.52,2.00326396]
[1755692450149,2.97,180.55,180.53,2.00326396]
[1755692450352,2.97,180.55,180.54,2.00326396]
[1755692450548,2.97,180.6,180.54,2.00326396]
[1755692450753,2.44945265,180.61,180.55,2.00326396]
[1755692450754,2.97,180.59,180.55,2.00326396]
[1755692450955,2.97,180.58,180.56,2.00326396]
[1755692451251,2.97,180.58,180.57,2.00326396]
[1755692451448,2.97,180.58,180.5,2.89]
[1755692451648,2.97,180.58,180.51,7.5412448]
[1755692451857,2.97,180.58,180.52,2.0015448]
[1755692452057,0.03596777,180.59,180.53,2.0015448]
[1755692452255,0.03596777,180.59,180.54,2.00161631]
[1755692452448,2.44945265,180.57,180.55,2.00169039]
[1755692452756,2.97,180.56,180.46,2.89]
[1755692452956,2.97,180.56,180.47,2.0012334]
[1755692453250,2.97,180.56,180.48,2.0012334]
[1755692453456,2.97,180.56,180.49,2.0012334]
[1755692453652,3.00513059,180.53,180.5,2.0012334]
[1755692453852,0.03513059,180.53,180.51,2.0012334]
[1755692454052,0.03513059,180.53,180.52,2.0012334]
[1755692454256,3.00513059,180.53,180.52,2.0012334]
[1755692454657,0.03513059,180.53,180.52,2.0012334]
[1755692455660,0.03513059,180.53,180.52,5.0512334]
[1755692456258,5.57443059,180.53,180.52,2.0012334]
[1755692456663,0.03513059,180.53,180.52,2.0012334]
[1755692456958,8.55443059,180.53,180.52,2.0012334]
[1755692457363,5.57443059,180.53,180.52,2.0012334]
[1755692457548,8.55443059,180.53,180.52,2.0012334]
[1755692458155,5.5404,180.5,180.48,3.05]
[1755692458355,5.5404,180.5,180.49,1.99893159]
[1755692458558,3.01513059,180.53,180.49,1.99893159]
[1755692458758,3.01513059,180.53,180.5,1.99847489]
[1755692458961,3.01513059,180.53,180.51,1.99847489]
[1755692459256,2.98,180.53,180.52,1.99847489]
[1755692459456,8.5193,180.53,180.52,1.99847489]
[1755692461159,5.5393,180.53,180.52,1.99847489]
[1755692461363,8.5193,180.53,180.52,1.99847489]
[1755692462261,5.5401,180.51,180.46,3.05]
[1755692462564,0.03756732,180.54,180.47,5.04681581]
[1755692462764,2.44945265,180.56,180.48,1.99681581]
[1755692462966,5.5398,180.52,180.5,3.05]
[1755692463268,5.5398,180.52,180.51,1.99681581]
[1755692463667,8.5198,180.52,180.51,1.99681581]
[1755692464468,8.5198,180.52,180.51,1.581e-05]
[1755692464766,5.5411,180.47,180.46,3.05]
[1755692464968,2.98,180.52,180.43,3.05]
[1755692465163,5.42945265,180.52,180.43,3.05]
[1755692465365,2.98,180.52,180.43,3.05]
[1755692465670,5.5411,180.48,180.42,3.05]
[1755692465871,0.03756416,180.49,180.42,3.05]
[1755692466265,5.541,180.48,180.42,3.05]
[1755692466771,5.5411,180.47,180.46,3.05]
[1755692467170,0.03756416,180.49,180.41,5.5429]
[1755692467370,0.03756416,180.49,180.4,123.84014746]
[1755692467371,0.03756416,180.49,180.43,3.05]
[1755692467772,2.98,180.52,180.43,3.05]
[1755692467773,2.98,180.52,180.43,8.5921]
[1755692467973,5.42945265,180.58,180.44,3.05]
[1755692468173,0.03610875,180.48,180.45,3.05]
[1755692468372,0.03610875,180.48,180.42,3.05]
[1755692468578,2.98,180.52,180.42,3.05]
[1755692468781,0.03589966,180.48,180.41,2.44945265]
[1755692469075,0.03589966,180.48,180.42,3.05]
[1755692469674,0.03589966,180.48,180.41,2.44945265]
[1755692469675,0.03589966,180.48,180.45,3.05]
[1755692469866,0.03589966,180.48,180.46,8.5912]
[1755692470070,0.03589966,180.48,180.47,3.05]
[1755692472979,0.03589966,180.48,180.47,8.5911]
[1755692473478,0.03589966,180.48,180.47,3.05]
[1755692474278,5.57669966,180.48,180.47,3.05]
[1755692474482,0.03589966,180.48,180.43,3.05]
[1755692474875,5.5415,180.46,180.44,3.05]
[1755692475180,0.03589966,180.48,180.44,3.05]
[1755692475380,0.03589966,180.48,180.41,3.05]
[1755692475575,0.03589966,180.48,180.44,5.5419]
[1755692475576,5.57679966,180.48,180.44,5.5419]
[1755692475782,0.03589966,180.48,180.45,3.05]
[1755692476080,0.03589966,180.48,180.46,3.05]
[1755692476285,0.03589966,180.48,180.41,3.05]
[1755692476877,0.03589966,180.48,180.43,2.44945265]
[1755692477071,0.03589966,180.48,180.47,5.5411]
[1755692477379,0.03589966,180.48,180.47,8.5911]
[1755692477576,2.98,180.59,180.47,3.05]
[1755692477781,9.26526936,180.71,180.47,3.05]
[1755692477782,3.01,180.66,180.53,3.05]
[1755692477986,3.01,180.66,180.56,3.05]
[1755692478180,3.01,180.66,180.58,2.44945265]
[1755692478481,3.01,180.66,180.59,3.05]
[1755692478681,5.5365,180.63,180.59,3.05]
[1755692478877,3.01,180.66,180.55,5.49945265]
[1755692479085,2.44945265,180.68,180.61,0.03913581]
[1755692479285,5.5365,180.62,180.61,0.03913581]
[1755692479582,3.01,180.67,180.61,0.03913581]
[1755692479781,3.01,180.67,180.62,3.05]
[1755692480178,5.5357,180.65,180.62,3.05]
[1755692480373,3.01,180.67,180.62,3.05]
[1755692480874,3.01,180.69,180.61,0.03913581]
[1755692481486,5.5365,180.62,180.61,0.03913581]
[1755692481986,8.5465,180.62,180.61,0.03913581]
[1755692482589,8.5465,180.62,180.61,3.581e-05]
[1755692482784,5.5365,180.62,180.61,3.581e-05]
[1755692483577,0.03708978,180.63,180.61,3.581e-05]
[1755692483787,0.03708978,180.63,180.62,3.05]
[1755692484084,374.93,180.7,180.62,7.97325913]
[1755692484284,374.93,180.7,180.63,4.92325913]
[1755692484486,145.95945265,180.74,180.65,5.5356]
[1755692484685,143.51,180.74,180.66,7.96808287]
[1755692484879,83.12265,180.77,180.67,4.91808287]
[1755692485088,83.12265,180.77,180.68,4.91808287]
[1755692485286,83.12265,180.77,180.69,4.91838991]
[1755692485488,83.12265,180.77,180.7,4.95819356]
[1755692485688,83.12265,180.77,180.71,4.91516993]
[1755692485689,3.01,180.76,180.71,4.91516993]
[1755692485888,3.01,180.74,180.72,4.91549336]
[1755692486083,85.57210265,180.77,180.7,0.03980365]
[1755692486284,83.12265,180.77,180.71,4.91658177]
[1755692486485,3.01,180.76,180.72,4.91658177]
[1755692486681,83.12265,180.77,180.7,0.03980365]
[1755692486886,3.01,180.75,180.71,4.9137527]
[1755692487088,3.01,180.75,180.7,0.03980365]
[1755692487685,3.01,180.76,180.7,0.03980365]
[1755692487887,86.93405229,180.77,180.71,4.91316353]
[1755692488099,3.01,180.75,180.72,4.91194186]
[1755692488290,3.01,180.75,180.7,0.03980365]
[1755692488590,3.01,180.75,180.71,4.9090087]
[1755692488890,3.01,180.75,180.72,4.9090087]
[1755692489094,3.01,180.76,180.73,4.9090087]
[1755692489292,3.01,180.76,180.7,0.03980365]
[1755692489586,3.01,180.75,180.71,4.90462566]
[1755692489788,3.01,180.74,180.7,0.03980365]
[1755692489985,3.01,180.73,180.71,4.90418394]
[1755692490188,3.01,180.72,180.7,0.03980365]
[1755692490388,3.01,180.76,180.7,0.03980365]
[1755692491495,5.5338,180.71,180.7,0.03980365]
[1755692491701,8.5438,180.71,180.7,0.03980365]
[1755692493888,8.5438,180.71,180.7,3.65e-06]
[1755692495995,5.5363,180.63,180.61,2.84]
[1755692496196,5.5363,180.63,180.62,4.90118456]
[1755692496593,5.5363,180.63,180.62,7.74118456]
[1755692497398,5.5363,180.63,180.62,4.90118456]
[1755692497799,8.5463,180.63,180.62,4.90118456]
[1755692498299,5.5374,180.59,180.58,2.84]
[1755692498501,5.5374,180.59,180.58,7.74403742]
[1755692500406,5.57861849,180.6,180.58,7.74403742]
[1755692500608,5.57861849,180.6,180.59,4.90403742]
[1755692502899,3.05141849,180.6,180.48,3.81140229]
[1755692503108,3.05141849,180.6,180.51,2.84]
[1755692503406,5.5393,180.53,180.51,2.84]
[1755692503810,0.03844328,180.57,180.51,2.84]
[1755692504002,3.04844328,180.57,180.48,8.3806]
[1755692504508,3.01,180.57,180.48,2.84]
[1755692504902,0.03788954,180.54,180.49,5.5405]
[1755692505210,0.03788954,180.54,180.5,2.84]
[1755692505610,5.5393,180.53,180.5,2.84]
[1755692505908,0.03788954,180.54,180.5,2.84]
[1755692506111,5.5393,180.53,180.5,2.84]
[1755692506808,0.03788954,180.54,180.44,4.58526808]
[1755692507012,0.03788954,180.54,180.52,2.84]
[1755692507211,3.01,180.57,180.52,2.84]
[1755692507511,3.01,180.58,180.48,2.84]
[1755692507705,0.03829848,180.55,180.51,2.84]
[1755692508205,5.539,180.54,180.51,2.84]
[1755692509512,5.57699848,180.55,180.5,5.5399]
[1755692509710,5.57699848,180.55,180.51,2.84]
[1755692510104,3.01,180.58,180.45,2.84]
[1755692510306,3.01,180.58,180.46,2.84]
[1755692510504,5.5391,180.54,180.5,5.54]
[1755692510709,0.03550885,180.55,180.46,2.84]
[1755692511005,0.03550885,180.55,180.48,7.42526808]
[1755692511208,0.03550885,180.55,180.49,2.84]
[1755692512911,0.03550885,180.55,180.52,5.5395]
[1755692513114,0.03550885,180.55,180.53,2.84]
[1755692513517,0.03550885,180.55,180.46,2.84]
[1755692514311,3.04550885,180.55,180.5,2.84]
[1755692514914,3.01,180.55,180.5,2.84]
[1755692515216,0.03912272,180.54,180.5,2.84]
[1755692515518,5.5393,180.53,180.5,8.3801]
[1755692516015,5.5393,180.53,180.51,8.5899]
[1755692516207,0.03912272,180.54,180.51,8.5899]
[1755692516513,0.03912272,180.54,180.45,4.58526808]
[1755692516708,0.03912272,180.54,180.48,3.05]
[1755692517215,5.5398,180.52,180.49,5.5404]
[1755692517417,5.5398,180.52,180.49,8.5904]
[1755692517717,0.03912272,180.54,180.5,3.05]
[1755692517916,5.5393,180.53,180.51,5.5399]
[1755692518218,5.5393,180.53,180.5,3.05]
[1755692518510,5.5396,180.52,180.5,3.05]
[1755692518701,0.04006295,180.54,180.5,3.05]
[1755692518905,5.5395,180.53,180.51,3.05]
[1755692520213,5.5396,180.52,180.51,3.05]
[1755692520415,0.04006295,180.54,180.51,3.05]
[1755692520710,0.04006295,180.54,180.51,8.5898]
[1755692520909,0.04006295,180.54,180.45,4.58526808]
[1755692521116,2.97006295,180.54,180.47,3.05]
[1755692521416,5.5406,180.49,180.47,3.05]
[1755692521709,5.5406,180.49,180.47,8.5911]
[1755692521914,5.5406,180.49,180.47,3.05]
[1755692522207,2.93,180.54,180.48,3.05]
[1755692522415,0.04013058,180.5,180.48,3.05]
[1755692522802,0.04013058,180.5,180.48,8.5906]
[1755692523214,5.58033058,180.5,180.48,8.5906]
[1755692523513,0.04013058,180.5,180.48,8.5906]
[1755692524109,0.04013058,180.5,180.49,8.5905]
[1755692529524,0.04013058,180.5,180.48,5.5407]
[1755692529712,0.04013058,180.5,180.45,3.05]
[1755692529913,0.04013058,180.5,180.44,7.04014711]
[1755692530324,0.04013058,180.5,180.46,3.05]
[1755692530518,0.04013058,180.5,180.47,5.5409]
[1755692530719,0.04013058,180.5,180.46,3.05]
[1755692530922,2.93,180.49,180.44,4.58526808]
[1755692531120,0.04013058,180.5,180.45,5.5417]
[1755692531319,2.93,180.49,180.45,3.05]
[1755692531824,2.93,180.49,180.43,7.04014711]
[1755692532126,8.4707,180.49,180.43,7.04014711]
[1755692532327,8.4707,180.49,180.44,3.05]
[1755692532823,8.4707,180.49,180.45,5.5415]
[1755692533514,8.4707,180.49,180.44,3.05]
[1755692533720,5.5409,180.48,180.44,3.05]
[1755692534124,5.5409,180.48,180.44,8.5919]
[1755692534425,5.5409,180.48,180.44,3.05]
[1755692534627,0.04013058,180.5,180.41,144.66526808]
[1755692534828,2.93,180.49,180.4,4.58526808]
[1755692535030,2.93,180.49,180.39,7.63526808]
[1755692535223,8.4723,180.44,180.39,7.63526808]
[1755692535525,2.93,180.44,180.38,4.58526808]
[1755692535724,8.4723,180.44,180.39,5.5435]
[1755692535917,8.4723,180.44,180.39,8.5935]
[1755692536121,2.93,180.45,180.38,4.58526808]
[1755692536323,2.93,180.45,180.36,149.08369078]
[1755692536324,2.93,180.45,180.36,3.05]
[1755692536820,2.93,180.45,180.36,8.5943]
[1755692537221,2.93,180.45,180.33,7.63526808]
[1755692537222,2.93,180.44,180.33,7.63526808]
[1755692537532,2.93,180.4,180.33,3.05]
[1755692537826,0.03751651,180.42,180.31,7.04014711]
[1755692537827,0.03751651,180.42,180.35,3.05]
[1755692538025,2.93,180.42,180.35,3.05]
[1755692538426,0.03727127,180.4,180.33,4.58526808]
[1755692538627,0.03727127,180.4,180.31,10.09014711]
[1755692538827,0.03727127,180.4,180.32,7.63526808]
[1755692539130,0.03727127,180.4,180.38,5.5437]
[1755692539629,0.03727127,180.4,180.39,5.5436]
[1755692540318,0.03727127,180.4,180.39,8.5936]
[1755692540522,0.03727127,180.4,180.39,5.5436]
[1755692540824,0.03727127,180.4,180.37,3.05]
[1755692541024,0.03727127,180.4,180.38,3.05]
[1755692541231,0.03727127,180.4,180.37,5.5442]
[1755692541728,0.03727127,180.4,180.37,8.5942]
[1755692541917,0.03727127,180.4,180.38,5.5439]
[1755692542321,0.03727127,180.4,180.37,3.05]
[1755692542322,0.03727127,180.4,180.39,5.5436]
[1755692542718,0.03727127,180.4,180.34,4.58526808]
[1755692542719,2.96727127,180.4,180.34,4.58526808]
[1755692542917,2.96727127,180.4,180.32,5.5457]
[1755692543723,2.96727127,180.4,180.31,3.05]
[1755692543923,2.96727127,180.4,180.32,3.05]
[1755692544325,2.93,180.4,180.32,3.05]
[1755692544630,0.03868122,180.38,180.32,3.05]
[1755692545228,0.03868122,180.38,180.34,5.545]
[1755692545430,2.96868122,180.38,180.34,5.545]
[1755692545826,0.03868122,180.38,180.35,2.86]
[1755692546531,0.03868122,180.38,180.36,2.86]
[1755692547031,0.03868122,180.38,180.32,2.86]
[1755692547826,0.03868122,180.38,180.36,2.86]
[1755692548032,0.03868122,180.38,180.37,2.86]
[1755692548232,0.03868122,180.38,180.34,2.45487903]
[1755692548432,2.95868122,180.38,180.32,2.86]
[1755692549437,5.5442,180.37,180.33,2.86]
[1755692549628,0.03868122,180.38,180.31,2.45487903]
[1755692549828,0.03868122,180.38,180.3,2.86]
[1755692550030,0.03868122,180.38,180.31,2.86]
[1755692550331,2.92,180.37,180.28,2.86]
[1755692550538,2.92,180.37,180.29,5.5466]
[1755692550733,2.92,180.37,180.28,2.86]
[1755692551347,2.92,180.37,180.31,2.86]
[1755692551348,0.03728526,180.35,180.31,2.86]
[1755692551639,0.03728526,180.35,180.31,5.5459]
[1755692551839,0.03728526,180.35,180.31,2.86]
[1755692552243,2.95728526,180.35,180.31,2.86]
[1755692552547,0.03728526,180.35,180.29,2.86]
[1755692553136,0.03728526,180.35,180.3,2.86]
[1755692553338,0.03728526,180.35,180.33,5.5454]
[1755692553541,0.03728526,180.35,180.34,2.86]
[1755692553744,2.92,180.42,180.34,2.86]
[1755692554049,2.92,180.42,180.31,2.45487903]
[1755692554254,2.92,180.42,180.31,2.86]
[1755692554549,2.92,180.41,180.3,2.86]
[1755692554742,2.92,180.41,180.32,5.5455]
[1755692554939,2.92,180.41,180.32,2.45487903]
[1755692555140,2.92,180.41,180.33,2.86]
[1755692555349,2.92,180.41,180.35,0.03602441]
[1755692558548,5.5445,180.36,180.35,0.03602441]
[1755692558745,8.4645,180.36,180.35,0.03602441]
[1755692558946,5.5445,180.36,180.35,0.03602441]
[1755692559452,8.4645,180.36,180.35,0.03602441]
[1755692560553,9.0245,180.36,180.35,2.441e-05]
[1755692561656,2.92,180.32,180.25,125.46452415]
[1755692562154,2.92,180.35,180.25,125.46452415]
[1755692562657,5.5464,180.3,180.26,5.5474]
[1755692562862,5.5464,180.3,180.27,2.86]
[1755692564251,8.4667,180.29,180.25,128.15232415]
[1755692564455,8.4667,180.29,180.25,131.01232415]
[1755692564955,2.92,180.29,180.25,125.46452415]
[1755692565351,5.5472,180.28,180.25,125.46452415]
[1755692565754,2.92,180.29,180.21,2.86]
[1755692566258,0.03591484,180.28,180.21,2.86]
[1755692566460,5.5476,180.26,180.22,8.4086]
[1755692566758,0.03591484,180.28,180.22,2.86]
[1755692567066,5.5473,180.27,180.24,2.86]
[1755692567460,0.03591484,180.28,180.24,2.86]
[1755692567660,5.5473,180.27,180.24,8.4082]
[1755692567855,0.03591484,180.28,180.21,2.86]
[1755692568059,5.5478,180.26,180.21,2.86]
[1755692568256,5.5478,180.26,180.22,2.86]
[1755692568550,2.95591484,180.28,180.22,2.86]
[1755692568764,2.92,180.28,180.23,5.5485]
[1755692569063,0.03832863,180.27,180.22,2.86]
[1755692569254,0.03832863,180.27,180.24,5.548]
[1755692569452,0.03832863,180.27,180.25,2.86]
[1755692569952,0.03832863,180.27,180.26,2.86]
[1755692570357,0.03832863,180.27,180.21,2.45487903]
[1755692570358,0.03832863,180.27,180.25,2.86]
[1755692570956,0.03832863,180.27,180.26,8.4076]
[1755692572964,2.92,180.36,180.3,5.5463]
[1755692573159,2.92,180.36,180.28,2.86]
[1755692573658,5.544,180.38,180.28,2.86]
[1755692573856,5.544,180.38,180.29,2.45487903]
[1755692574060,8.4637,180.39,180.3,2.86]
[1755692574270,2.92,180.39,180.32,0.04194885]
[1755692574569,2.92,180.39,180.32,5.58744885]
[1755692574761,5.5446,180.36,180.32,8.44744885]
[1755692575057,2.92,180.39,180.34,8.4048]
[1755692575263,2.92,180.39,180.34,5.5448]
[1755692575565,372.58,180.41,180.35,2.86]
[1755692575958,5.5433,180.39,180.35,2.86]
[1755692576365,5.5433,180.39,180.36,0.04166191]
[1755692576366,8.5533,180.39,180.36,0.04166191]
[1755692576556,5.5433,180.39,180.36,0.04166191]
[1755692576762,5.5432,180.4,180.36,0.04166191]
[1755692576960,3.01,180.42,180.37,5.5438]
[1755692577162,3.01,180.42,180.37,8.4338]
[1755692577363,8.5526,180.42,180.37,8.4338]
[1755692578061,5.5421,180.43,180.38,5.5436]
[1755692578259,8.5521,180.43,180.38,8.4336]
[1755692578465,8.5521,180.43,180.38,5.5436]
[1755692578766,3.01,180.46,180.39,0.0388301]
[1755692580267,2.45487903,180.48,180.39,0.0388301]
[1755692580463,3.01,180.49,180.4,2.89]
[1755692581375,3.01,180.49,180.43,0.03526478]
[1755692582067,375.13487903,180.51,180.43,0.03526478]
[1755692582275,3.01,180.5,180.43,0.03526478]
[1755692586981,2.45487903,180.49,180.43,0.03526478]
[1755692587277,3.01,180.46,180.43,0.03526478]
[1755692587478,2.45487903,180.49,180.43,0.03526478]
[1755692589678,5.5413,180.46,180.43,0.03526478]
[1755692589879,2.45487903,180.49,180.43,0.03526478]
[1755692590076,3.01,180.46,180.43,0.03526478]
[1755692590380,8.5517,180.44,180.43,0.03526478]
[1755692594183,8.5517,180.44,180.37,2.89]
[1755692594184,5.5435,180.39,180.32,2.89]
[1755692594683,5.5435,180.39,180.36,2.89]
[1755692595083,3.01,180.41,180.32,2.89]
[1755692595486,5.5441,180.37,180.3,2.89]
[1755692595784,5.5441,180.37,180.33,2.89]
[1755692595979,5.5441,180.37,180.34,2.89]
[1755692596787,5.5445,180.36,180.34,2.89]
[1755692597283,2.45487903,180.42,180.28,4.56994989]
[1755692597486,3.01,180.36,180.29,2.89]
[1755692597882,5.5451,180.34,180.3,2.89]
[1755692598084,5.5451,180.34,180.31,2.89]
[1755692598295,5.58404042,180.34,180.31,2.89]
[1755692598588,0.03894042,180.34,180.28,5.34487903]
[1755692598886,0.03894042,180.34,180.29,4.56994989]
[1755692599090,0.03894042,180.34,180.32,2.89]
[1755692599590,0.03894042,180.34,180.28,2.89]
[1755692599783,5.5452,180.33,180.28,5.5464]
[1755692599980,5.5452,180.33,180.29,2.89]
[1755692600390,5.5452,180.33,180.28,5.5464]
[1755692600391,5.5454,180.32,180.28,2.89]
[1755692600691,0.03894042,180.34,180.26,2.89]
[1755692601193,5.46487903,180.39,180.27,2.89]
[1755692601689,0.0401481,180.32,180.31,2.89]
[1755692602183,5.5443,180.36,180.31,2.89]
[1755692602489,0.03571615,180.33,180.3,2.89]
[1755692602682,0.03571615,180.33,180.31,2.89]
[1755692603385,0.03571615,180.33,180.32,2.89]
[1755692604690,0.03571615,180.33,180.27,2.89]
[1755692604885,0.03571615,180.33,180.26,5.5473]
[1755692605092,0.03571615,180.33,180.25,2.89]
[1755692605293,5.5458,180.31,180.25,2.89]
[1755692605483,0.03571615,180.33,180.27,5.5468]
[1755692605794,5.58091615,180.33,180.25,2.89]
[1755692606094,0.03571615,180.33,180.28,5.5465]
[1755692606293,0.03571615,180.33,180.29,2.92]
[1755692606893,5.58091615,180.33,180.29,2.92]
[1755692607083,0.03571615,180.33,180.29,2.92]
[1755692607392,0.03571615,180.33,180.3,2.92]
[1755692608091,8.59091615,180.33,180.27,2.92]
[1755692608587,8.59091615,180.33,180.28,5.5465]
[1755692608893,5.5455,180.32,180.28,8.4665]
[1755692609093,0.03571615,180.33,180.29,2.92]
[1755692609395,3.04571615,180.33,180.29,2.92]
[1755692610096,5.5456,180.32,180.29,2.92]
[1755692610595,5.5456,180.32,180.27,5.5467]
[1755692610596,0.03571615,180.33,180.25,2.92]
[1755692611191,3.04571615,180.33,180.25,8.4674]
[1755692611495,3.04571615,180.33,180.25,2.92]
[1755692611683,3.04571615,180.33,180.26,5.5472]
[1755692613097,3.04571615,180.33,180.25,8.4675]
[1755692613592,3.04571615,180.33,180.25,2.92]
[1755692613795,3.04571615,180.33,180.26,5.5472]
[1755692613987,3.04571615,180.33,180.23,4.57334289]
[1755692614194,3.04571615,180.33,180.22,7.49334289]
[1755692614394,3.04571615,180.33,180.22,8.4683]
[1755692614598,3.01,180.31,180.22,2.92]
[1755692615097,0.03763869,180.29,180.22,2.92]
[1755692615786,0.03763869,180.29,180.23,5.5481]
[1755692616799,0.03763869,180.29,180.24,5.5478]
[1755692616997,3.04763869,180.29,180.25,2.92]
[1755692618102,3.04763869,180.29,180.23,5.5481]
[1755692618898,3.04763869,180.29,180.22,8.4684]
[1755692619197,3.04763869,180.29,180.22,5.5484]
[1755692619695,3.04763869,180.29,180.21,8.4687]
[1755692619897,5.5475,180.26,180.22,2.92]
[1755692620090,5.5475,180.26,180.23,2.92]
[1755692620593,3.01,180.28,180.19,7.02822192]
[1755692620800,3.01,180.28,180.2,2.92]
[1755692620996,0.04012421,180.26,180.22,2.92]
[1755692621297,3.05012421,180.26,180.22,2.92]
[1755692621498,8.59762421,180.26,180.22,2.92]
[1755692621798,0.04012421,180.26,180.23,2.92]
[1755692622796,5.58742421,180.26,180.23,2.92]
[1755692623394,0.04012421,180.26,180.21,2.92]
[1755692623698,5.5481,180.24,180.21,2.92]
[1755692624195,5.5482,180.23,180.21,2.92]
[1755692624600,0.04012421,180.26,180.21,2.92]
[1755692624801,5.5483,180.23,180.21,2.92]
[1755692625196,0.04012421,180.26,180.17,141.14]